fUSD/lending_fUSD_20240929
["ID","MTS","AMOUNT","RATE_DAILY","PERIOD"]
[339407390,1727589032868,-1752.96961553,0.00011,2]
[339407391,1727589032879,-502.90722895,0.00011,2]
[339407392,1727589032890,-445.64999998,0.00011,2]
[339407393,1727589032901,-3843.19666993,0.00011,2]
[339407394,1727589032912,-5015.55103645,0.00011,2]
[339407395,1727589032923,-865.31617129,0.00011,2]
[339407396,1727589032934,-2599.7794439,0.00011,2]
[339407397,1727589033130,-2666.29867666,0.00011,2]
[339407398,1727589033142,-860.97154633,0.00011,2]
[339407399,1727589033159,-999.91970765,0.00011,2]
[339407400,1727589033171,-1373.45409128,0.00011,2]
[339407410,1727589038575,-1.58302591,0.00010996,2]
[339407411,1727589038622,-521.5996,0.00010996,2]
[339407412,1727589038735,-253.87,0.00010996,2]
[339407445,1727589040720,-1081.0,0.00010988,2]
[339407446,1727589040729,-6712.13263709,0.00010996,2]
[339407447,1727589040739,-6511.43378617,0.00011,2]
[339407448,1727589040772,-2199.99985278,0.00011,2]
[339407449,1727589040783,-658.0,0.00011,2]
[339407450,1727589040804,-217710.0,0.00011,2]
[339407510,1727589073213,269.01,9.025e-05,2]
[339407511,1727589196129,500.0,8.953e-05,2]
[339407513,1727589305302,750.0,0.00022,120]
[339407521,1727589392089,160.98,0.00013918,30]
[339407522,1727589620214,255.55,8.219e-05,2]
[339407523,1727589630197,168.86,9.589e-05,2]
[339407533,1727589934958,150.0,9.888e-05,2]
[339407534,1727589943390,160.98,0.00013918,30]
[339407535,1727589971142,-562.83,9.922e-05,2]
[339407536,1727589971164,-159.57,9.959e-05,2]
[339407537,1727589971184,-544.56018337,9.962e-05,2]
[339407545,1727590040183,-1585.54,9.995e-05,2]
[339407546,1727590108368,1235.262,9.822e-05,2]
[339407556,1727590150293,296.64886264,9.827e-05,2]
[339407557,1727590150317,17018.07113736,9.827e-05,2]
[339407558,1727590199043,150.0,9.867e-05,2]
[339407559,1727590199068,747.42,9.867e-05,2]
[339407579,1727590231575,-200.0,9.956e-05,2]
[339407580,1727590231584,-159.54,0.00010016,2]
[339407581,1727590231595,-250.0,0.00010038,2]
[339407582,1727590231604,-3808.00734119,0.00010038,2]
[339407583,1727590231616,-1100.72,0.00010038,2]
[339407584,1727590231699,-1585.796246,0.00010038,2]
[339407585,1727590231711,-4019.13656188,0.00010038,2]
[339407586,1727590231800,-865.85397056,0.00010038,2]
[339407587,1727590231813,-202.99114998,0.00010038,2]
[339407588,1727590231823,-414.43,0.0001004,2]
[339407589,1727590231832,-250.0,0.00010042,2]
[339407590,1727590231842,-288.0,0.00010102,2]
[339407591,1727590231852,-364.0758293,0.0001021,2]
[339407592,1727590231861,-697.69,0.00010283,2]
[339407593,1727590231871,-1000.0,0.00010341,2]
[339407594,1727590231881,-999.99,0.00010341,2]
[339407595,1727590231891,-255.55,0.00010483,2]
[339407596,1727590231903,-499.99,0.0001071,2]
[339407597,1727590231912,-1217.16999205,0.00010837,2]
[339407598,1727590237877,-253.414258,0.00010837,2]
[339407656,1727590239582,-32.37036216,0.00010837,2]
[339407657,1727590239591,-150.99,0.00010837,2]
[339407658,1727590239600,-150.0,0.00010846,2]
[339407659,1727590239610,-448.0,0.00010847,2]
[339407660,1727590239806,-559.0,0.00010847,2]
[339407661,1727590239816,-331.97904612,0.00010847,2]
[339407662,1727590239903,-601.02095388,0.00010847,2]
[339407663,1727590239912,-395.5467356,0.00010847,2]
[339407678,1727590242572,-414.4532644,0.00010847,2]
[339407679,1727590242582,-554.0,0.00010847,2]
[339407680,1727590242591,-1904.0,0.00010847,2]
[339407681,1727590242599,-2314.5894836,0.00010847,2]
[339407682,1727590242847,-1035.4105164,0.00010847,2]
[339407683,1727590242856,-424.42020571,0.00010847,2]
[339407686,1727590248905,-382.57979429,0.00010847,2]
[339407687,1727590248914,-1911.0,0.00010847,2]
[339407688,1727590248924,-150.0,0.00010888,2]
[339407689,1727590248933,-1148.0,0.00010888,2]
[339407690,1727590248943,-5872.0,0.00010888,2]
[339407691,1727590248952,-13502.0,0.00010888,2]
[339407692,1727590248962,-1551.8153,0.00010896,2]
[339407693,1727590248971,-1003.994,0.00010896,2]
[339407694,1727590248981,-1570.0916,0.000109,2]
[339407695,1727590248990,-253.4143,0.000109,2]
[339407696,1727590248999,-3914.26157892,0.000109,2]
[339407697,1727590249009,-288.0,0.0001091,2]
[339407698,1727590249018,-182.86,0.00010959,2]
[339407699,1727590249028,-150.0,0.00010959,2]
[339407700,1727590249037,-250.0,0.00010959,2]
[339407701,1727590249047,-162.64,0.00010959,2]
[339407702,1727590249056,-1081.0,0.00010972,2]
[339407703,1727590249065,-500.0,0.00010973,2]
[339407704,1727590249075,-500.0,0.00010973,2]
[339407705,1727590249083,-500.0,0.00010973,2]
[339407706,1727590249092,-360.804,0.00010987,2]
[339407707,1727590249102,-150.0,0.00010988,2]
[339407708,1727590249111,-150.0,0.00010988,2]
[339407709,1727590249120,-229.876,0.00010988,2]
[339407710,1727590249130,-262.799,0.00010988,2]
[339407711,1727590249140,-1296.0,0.00010988,2]
[339407712,1727590249149,-625.0,0.00010988,2]
[339407713,1727590249158,-1263.0,0.00010988,2]
[339407714,1727590249167,-3368.1825573,0.00010996,2]
[339407715,1727590249177,-4862.7884945,0.00010996,2]
[339407716,1727590249186,-50039.7524566,0.00010996,2]
[339407717,1727590249195,-1000.0,0.00010999,2]
[339407718,1727590249204,-2004.47262654,0.00010999,2]
[339407719,1727590249214,-227.92640259,0.00011,2]
[339407720,1727590249224,-120676.75493845,0.00011,2]
[339407721,1727590249234,-22895453.13745694,0.00011,2]
[339407722,1727590249260,-150626.82664596,0.00011,2]
[339407723,1727590249271,-1108.0,0.00011,2]
[339407733,1727590298603,3558.203,9.839e-05,2]
[339407737,1727590327646,250.02,8.966e-05,2]
[339407741,1727590396013,500.0,8.894e-05,2]
[339407743,1727590730900,152.93,0.00013918,30]
[339407746,1727590783752,172.03,9.589e-05,2]
[339407749,1727590879115,237.51,8.219e-05,2]
[339407751,1727591108212,150.0,9.888e-05,2]
[339407754,1727591136654,150.0,9.888e-05,2]
[339407755,1727591156096,182.42,9.886e-05,2]
[339407785,1727591325198,152.93,0.00013918,30]
[339407851,1727591431883,-250.0,9.974e-05,2]
[339407852,1727591431894,-200.0,9.981e-05,2]
[339407853,1727591431903,-770.90993639,9.995e-05,2]
[339407854,1727591431915,-229.09006361,9.995e-05,2]
[339407855,1727591431925,-1852.42,0.00010012,2]
[339407856,1727591431934,-250.0,0.00010019,2]
[339407857,1727591431944,-175.56,0.00010058,2]
[339407858,1727591431954,-949.85,0.00010063,2]
[339407859,1727591431964,-600.0,0.00010068,2]
[339407860,1727591431974,-500.0,0.00010068,2]
[339407861,1727591431984,-225.11338396,0.0001038,2]
[339407862,1727591431995,-74.88661604,0.0001038,2]
[339407863,1727591432005,-1949.186769,0.00010381,2]
[339407864,1727591432014,-150.99,0.00010434,2]
[339407865,1727591432024,-150.99,0.00010434,2]
[339407866,1727591432033,-499.99,0.00010477,2]
[339407867,1727591432043,-237.51,0.00010482,2]
[339407868,1727591432052,-305.89,0.00010675,2]
[339407869,1727591432062,-325.383,0.00010675,2]
[339407870,1727591432071,-28900.77468405,0.00010718,2]
[339407872,1727591432081,-255.0,0.00010811,2]
[339407874,1727591432090,-150.0,0.00010899,2]
[339407876,1727591432100,-23806.75606837,0.000109,2]
[339407878,1727591432110,-326.5432251,0.000109,2]
[339407880,1727591432119,-500.32707973,0.00010973,2]
[339407881,1727591432128,-500.0,0.00010973,2]
[339407882,1727591432138,-502.08720999,0.00010973,2]
[339407883,1727591432147,-400.35183498,0.00010973,2]
[339407884,1727591432157,-161.51471724,0.00010986,2]
[339407885,1727591432167,-810.0,0.00010988,2]
[339407886,1727591432176,-559.0,0.00010988,2]
[339407887,1727591432185,-933.0,0.00010988,2]
[339407888,1727591432194,-1904.0,0.00010988,2]
[339407889,1727591432203,-554.0,0.00010988,2]
[339407890,1727591432213,-1911.0,0.00010988,2]
[339407891,1727591432222,-3350.0,0.00010988,2]
[339407892,1727591432231,-1081.0,0.00010988,2]
[339407893,1727591432240,-1052.744,0.00010988,2]
[339407894,1727591432249,-1296.0,0.00010988,2]
[339407895,1727591432258,-625.0,0.00010988,2]
[339407896,1727591432268,-150.0,0.00010988,2]
[339407897,1727591432277,-953.6556078,0.0001099,2]
[339407899,1727591432286,-953.6556078,0.0001099,2]
[339407900,1727591432295,-953.6556078,0.0001099,2]
[339407902,1727591432304,-5122.80306117,0.00010997,2]
[339407903,1727591432314,-1000.0,0.00010999,2]
[339407904,1727591432323,-495.5029963,0.00010999,2]
[339407905,1727591432332,-1000.0,0.00010999,2]
[339407906,1727591432341,-2000.0,0.00010999,2]
[339407907,1727591432350,-500.0,0.00010999,2]
[339407908,1727591432360,-500.0,0.00010999,2]
[339407909,1727591432369,-500.0,0.00010999,2]
[339407910,1727591432378,-595.2537711,0.00010999,2]
[339407911,1727591432387,-500.0,0.00010999,2]
[339407912,1727591432396,-500.0,0.00010999,2]
[339407913,1727591432405,-500.0,0.00010999,2]
[339407914,1727591432415,-182.34112207,0.00011,2]
[339407915,1727591432425,-3076.57676048,0.00011,2]
[339407916,1727591432437,-9219.52474874,0.00011,2]
[339407919,1727591437832,-744.39982677,9.995e-05,2]
[339407920,1727591437848,-1000.36634955,9.995e-05,2]
[339407921,1727591437915,-1261.64550952,9.995e-05,2]
[339407922,1727591437926,-502.09940959,0.00010973,2]
[339407923,1727591437937,-448.0,0.00010988,2]
[339407924,1727591437947,-5872.0,0.00010988,2]
[339407925,1727591437958,-133115.71526955,0.00011,2]
[339407926,1727591437968,-1042845.68139522,0.00011,2]
[339407927,1727591438000,-2481.725565,0.00011,2]
[339407928,1727591438083,-316.62500066,0.00011,2]
[339408014,1727591439739,-1148.0,0.00010988,2]
[339408016,1727591439750,-2638.96997268,0.00011,2]
[339408027,1727591439855,200.0,9.9e-05,3]
[339408033,1727591439899,-4926373.35418171,0.00011,2]
[339408285,1727591442959,-500.0,0.0001,3]
[339408287,1727591442969,-32.88000001,0.000109,2]
[339408543,1727591446052,-625.95500083,0.000101,3]
[339408734,1727591468628,200.0,9.9e-05,3]
[339408735,1727591477609,1235.262,9.858e-05,2]
[339408736,1727591510193,460.03,8.437e-05,2]
[339408737,1727591575264,-280.12,9.9e-05,2]
[339408738,1727591575718,-194.26252568,9.9e-05,2]
[339408739,1727591576523,-182.7975225,9.9e-05,2]
[339408740,1727591577704,-176.2935,9.9e-05,2]
[339408741,1727591578160,-150.0,9.9e-05,2]
[339408742,1727591594584,500.0,9.82e-05,2]
[339408743,1727591595000,500.0,9.821e-05,2]
[339408744,1727591595363,500.0,9.821e-05,2]
[339408745,1727591613145,275.61,9.865e-05,2]
[339408746,1727591628544,189.36,9.865e-05,2]
[339408747,1727591634246,1416.56,9.865e-05,2]
[339408748,1727591635881,3549.28,9.831e-05,2]
[339408750,1727591665768,1156.92,9.763e-05,2]
[339408752,1727591718994,300.0,9.763e-05,2]
[339408753,1727591748626,783.11,9.831e-05,2]
[339408754,1727591757544,661.44,9.829e-05,2]
[339408755,1727591805825,500.0,9.762e-05,2]
[339408756,1727591826238,2287.2,9.762e-05,2]
[339408757,1727591833282,250.0,9.762e-05,2]
[339408758,1727591845424,1975.26,9.762e-05,2]
[339408759,1727591878792,404.5,9.798e-05,2]
[339408760,1727591891227,250.0,9.762e-05,2]
[339408761,1727591892894,171.38349108,0.00021,60]
[339408763,1727591948546,200.0,9.762e-05,2]
[339408765,1727591977799,152.93,0.00013918,30]
[339408768,1727591983780,23900.0,9.806e-05,2]
[339408782,1727592020274,1924.35,9.772e-05,2]
[339408783,1727592045577,4779.02,9.733e-05,2]
[339408784,1727592046678,334.82,9.733e-05,2]
[339408785,1727592052684,2048.93,9.758e-05,2]
[339408786,1727592073421,228.34,9.828e-05,2]
[339408787,1727592078215,457.27,8.219e-05,2]
[339408789,1727592088126,1357.28,9.83e-05,2]
[339408790,1727592182508,189.36,9.817e-05,2]
[339408793,1727592206423,578.46,9.783e-05,2]
[339408794,1727592304904,150.0,9.888e-05,2]
[339408795,1727592308715,150.0,9.888e-05,2]
[339408796,1727592315327,150.0,9.888e-05,2]
[339408797,1727592317550,150.0,9.888e-05,2]
[339408798,1727592327271,150.0,9.888e-05,2]
[339408800,1727592340169,150.0,9.888e-05,2]
[339408813,1727592417057,244.71,9.906e-05,2]
[339408814,1727592432309,400.0,9.9e-05,3]
[339408817,1727592485951,1000.0,0.00022,120]
[339408818,1727592492667,168.86,9.589e-05,2]
[339408819,1727592520664,152.93,0.00013918,30]
[339408820,1727592545446,840.0,9.725e-05,2]
[339408822,1727592569527,500.0,9.745e-05,2]
[339408831,1727592601161,2155.43,9.724e-05,2]
[339408832,1727592601188,21744.57,9.724e-05,2]
[339408833,1727592602548,250.0,9.724e-05,2]
[339408842,1727592631953,-452.392072,9.935e-05,2]
[339408843,1727592631962,-900.0,0.0001,3]
[339408844,1727592631972,-917.98423203,0.00010068,2]
[339408845,1727592631981,-600.0,0.00010068,2]
[339408846,1727592631991,-500.0,0.00010068,2]
[339408847,1727592632001,-153.97,0.00010085,2]
[339408848,1727592632010,-875.65369597,0.000101,3]
[339408849,1727592632022,-295.4294,0.000101,3]
[339408850,1727592632034,-228.91690403,0.000101,3]
[339408851,1727592632043,-1800.0,0.000102,3]
[339408852,1727592632053,-150.0,0.00010254,2]
[339408853,1727592632062,-604.12,0.000103,2]
[339408854,1727592632072,-2300.0,0.000103,3]
[339408855,1727592632081,-35.28745567,0.000103,2]
[339408856,1727592632093,-4527.38254433,0.000103,2]
[339408857,1727592632102,-400.0,0.000104,3]
[339408858,1727592632112,-150.0,0.00010437,2]
[339408859,1727592632121,-274.02,0.00010437,2]
[339408860,1727592632131,-457.27,0.00010468,2]
[339408861,1727592632141,-400.0,0.000105,3]
[339408862,1727592632150,-400.0,0.000106,3]
[339408863,1727592632160,-150.0,0.0001062,2]
[339408864,1727592632169,-400.0,0.000107,3]
[339408865,1727592632178,-1006.0,0.000108,3]
[339408866,1727592632189,-1000.0,0.000108,2]
[339408867,1727592632198,-5978.23255027,0.00010879,2]
[339408868,1727592632208,-150.0,0.00010879,2]
[339408869,1727592632218,-52598.93074293,0.0001088,2]
[339408870,1727592632228,-15163.634,0.000109,2]
[339408871,1727592632238,-473.035,0.000109,2]
[339408872,1727592632248,-150.0,0.000109,2]
[339408873,1727592632258,-320.69947492,0.000109,2]
[339408874,1727592632268,-11832.54858306,0.000109,2]
[339408875,1727592632277,-7500.0,0.000109,2]
[339408876,1727592632288,-332.00451445,0.000109,2]
[339408877,1727592632299,-236.45909106,0.000109,2]
[339408878,1727592632308,-840.0,0.00010941,2]
[339408879,1727592632319,-500.0,0.00010973,2]
[339408880,1727592632329,-500.0,0.00010973,2]
[339408881,1727592632340,-200.0,0.00010983,2]
[339408882,1727592632351,-161.05,0.00010986,2]
[339408883,1727592632360,-150.0,0.00010986,2]
[339408884,1727592632370,-299.17042601,0.00010986,2]
[339408885,1727592632379,-150.0,0.00010986,2]
[339408886,1727592632389,-155.50831147,0.00010986,2]
[339408887,1727592632399,-198.46240356,0.00010986,2]
[339408888,1727592632408,-1296.0,0.00010988,2]
[339408889,1727592632418,-624.56,0.00010988,2]
[339408890,1727592632427,-448.0,0.00010988,2]
[339408891,1727592632436,-933.0,0.00010988,2]
[339408892,1727592632446,-810.0,0.00010988,2]
[339408894,1727592632455,-559.0,0.00010988,2]
[339408895,1727592632465,-554.0,0.00010988,2]
[339408897,1727592632474,-1904.0,0.00010988,2]
[339408899,1727592632484,-1023.285,0.00010988,2]
[339408900,1727592632493,-1894.931,0.00010988,2]
[339408903,1727592632504,-1148.0,0.00010988,2]
[339408905,1727592632513,-5872.0,0.00010988,2]
[339408907,1727592632523,-13502.0,0.00010988,2]
[339408909,1727592632532,-155.464,0.00010988,2]
[339408911,1727592632542,-158.67,0.0001099,2]
[339408912,1727592632551,-158.67,0.0001099,2]
[339408914,1727592632560,-158.67,0.0001099,2]
[339408916,1727592632570,-158.67,0.0001099,2]
[339408918,1727592632579,-158.67,0.0001099,2]
[339408920,1727592632588,-158.67,0.0001099,2]
[339408922,1727592632599,-158.67,0.0001099,2]
[339408925,1727592632609,-158.67,0.0001099,2]
[339408927,1727592632619,-158.67,0.0001099,2]
[339408929,1727592632628,-158.67,0.0001099,2]
[339408930,1727592632639,-158.67,0.0001099,2]
[339408932,1727592632648,-158.67,0.0001099,2]
[339408934,1727592632658,-158.67,0.0001099,2]
[339408936,1727592632668,-1000.0,0.00010999,2]
[339408938,1727592632677,-220.1407834,0.00010999,2]
[339408940,1727592632687,-2000.0,0.00010999,2]
[339408942,1727592632697,-178.84028189,0.00010999,2]
[339408944,1727592632706,-647.77943296,0.00010999,2]
[339408946,1727592632717,-500.0,0.00010999,2]
[339408948,1727592632727,-500.0,0.00010999,2]
[339408949,1727592632736,-500.0,0.00010999,2]
[339408951,1727592632746,-190.24395901,0.00010999,2]
[339408953,1727592632756,-500.0,0.00010999,2]
[339408955,1727592632765,-500.0,0.00010999,2]
[339408957,1727592632775,-500.0,0.00010999,2]
[339408959,1727592632785,-600.0,0.00010999,2]
[339408961,1727592632794,-500.0,0.00010999,2]
[339408963,1727592632804,-500.0,0.00010999,2]
[339408965,1727592632813,-500.0,0.00010999,2]
[339408967,1727592632822,-500.0,0.00010999,2]
[339408969,1727592632832,-500.0,0.00010999,2]
[339408971,1727592632842,-500.0,0.00010999,2]
[339408973,1727592632851,-500.0,0.00010999,2]
[339408975,1727592632861,-500.0,0.00010999,2]
[339408977,1727592632870,-500.0,0.00010999,2]
[339408979,1727592632880,-500.0,0.00010999,2]
[339408981,1727592632890,-448.98530827,0.00010999,2]
[339408984,1727592632907,-51.01469173,0.00010999,2]
[339408986,1727592632917,-497.635364,0.00010999,2]
[339408988,1727592632929,-34.27499164,0.00010999,2]
[339408990,1727592632941,-465.72500836,0.00010999,2]
[339408992,1727592632950,-500.0,0.00010999,2]
[339408994,1727592632961,-500.0,0.00010999,2]
[339408996,1727592632974,-40697.06360112,0.00011,2]
[339408998,1727592632986,-44906.78756422,0.00011,2]
[339409000,1727592632997,-1193.60458378,0.00011,2]
[339409003,1727592633009,-555.66591721,0.00011,2]
[339409005,1727592633020,-1752.99828896,0.00011,2]
[339409007,1727592633032,-1765.2517191,0.00011,2]
[339409009,1727592633046,-4301.99211853,0.00011,2]
[339409012,1727592633061,-344.33408279,0.00011,2]
[339409021,1727592638047,-544.56018337,9.968e-05,2]
[339409022,1727592638057,-2432.14365356,0.000101,2]
[339409023,1727592638068,-250.3920289,0.000101,2]
[339409024,1727592638079,-5201.45961754,0.000101,2]
[339409025,1727592638089,-938.83518569,0.00011,2]
[339409027,1727592638379,-39752.57197788,0.00011,2]
[339409028,1727592638388,-482687.9358086,0.00011,2]
[339409162,1727592639918,-173.71,0.00010959,2]
[339409164,1727592639929,-296.33830758,0.00011,2]
[339409168,1727592639965,-51832.92783422,0.00011,2]
[339409172,1727592640002,-1125.63463111,0.00011,2]
[339409175,1727592640014,-1285.05571944,0.00011,2]
[339409178,1727592640039,-9559.54843617,0.00011,2]
[339409182,1727592640074,-1093.77449706,0.00011,2]
[339409306,1727592642082,-1081.0,0.00010988,2]
[339409307,1727592642092,-2613.70476679,0.00011,2]
[339409308,1727592642106,-647.526547,0.00011,2]
[339409309,1727592642118,-739.70005,0.00011,2]
[339409310,1727592642128,-669.21960628,0.00011,2]
[339409311,1727592642140,-2986.02658868,0.00011,2]
[339409312,1727592642160,-314350.62293152,0.00011,2]
[339409313,1727592642171,-10060.32229751,0.00011,2]
[339409386,1727592642960,-11740.77866889,0.00011,2]
[339409389,1727592642974,-4616.80177371,0.00011,2]
[339409391,1727592642987,-10539.79333542,0.00011,2]
[339409392,1727592642998,-9022.73171167,0.00011,2]
[339409394,1727592643010,-9250.7235472,0.00011,2]
[339409397,1727592643022,-3395.57123752,0.00011,2]
[339409399,1727592643032,-56951.87989369,0.00011,2]
[339409401,1727592643043,-632.52348141,0.00011,2]
[339409403,1727592643054,-296.18044634,0.00011,2]
[339409405,1727592643067,-2526.94424042,0.00011,2]
[339409407,1727592643078,-1279.97005618,0.00011,2]
[339409410,1727592643100,-1311.45,0.00011,2]
[339409414,1727592643134,-1888.66440181,0.00011,2]
[339409416,1727592643147,-1862.61219169,0.00011,2]
[339409419,1727592643158,-2974.33211636,0.00011,2]
[339409421,1727592643173,-913.8696287,0.00011,2]
[339409424,1727592643198,-16193.59417269,0.00011,2]
[339409426,1727592643209,-1625.7938459,0.00011,2]
[339409428,1727592643220,-184103.83481637,0.00011,2]
[339409469,1727592645940,-1059.90145921,0.00011,2]
[339409470,1727592645951,-1663.09194651,0.00011,2]
[339409471,1727592645962,-2311.24974926,0.00011,2]
[339409472,1727592645974,-1753.29721596,0.00011,2]
[339409473,1727592645985,-21291.84966045,0.00011,2]
[339409474,1727592645997,-1933.99298,0.00011,2]
[339409475,1727592646009,-1064.7,0.00011,2]
[339409476,1727592646027,-810.7547,0.00011,2]
[339409477,1727592646038,-2673.4011696,0.00011,2]
[339409478,1727592646058,-660.32229313,0.00011,2]
[339409479,1727592646070,-687.84000002,0.00011,2]
[339409480,1727592646081,-1488.17951972,0.00011,2]
[339409481,1727592646092,-1445.87941935,0.00011,2]
[339409482,1727592646103,-3076.98370184,0.00011,2]
[339409483,1727592646116,-373.49586585,0.00011,2]
[339409484,1727592646127,-1867.26480771,0.00011,2]
[339409485,1727592646138,-742.004077,0.00011,2]
[339409486,1727592646150,-856.2321508,0.00011,2]
[339409487,1727592646161,-3095.56445462,0.00011,2]
[339409488,1727592646178,-686.96804013,0.00011,2]
[339409489,1727592646190,-54847.26024412,0.00011,2]
[339409490,1727592646201,-63389.13678152,0.00011,2]
[339409491,1727592646224,-620.1702649,0.00011,2]
[339409492,1727592646235,-547.84176427,0.00011,2]
[339409493,1727592646246,-253.52,0.00011,2]
[339409494,1727592646257,-1836.87666683,0.00011,2]
[339409499,1727592799850,440.12,8.541e-05,2]
[339409519,1727593063441,152.93,0.00013918,30]
[339409568,1727593375947,-165.11593277,0.00013,20]
[339409569,1727593396029,500.0,8.473e-05,2]
[339409570,1727593417093,418.11,8.219e-05,2]
[339409571,1727593505731,150.0,9.888e-05,2]
[339409572,1727593508872,150.0,9.888e-05,2]
[339409573,1727593515481,150.0,9.888e-05,2]
[339409574,1727593522508,151.92635787,9.888e-05,2]
[339409581,1727593530978,150.96908052,9.888e-05,2]
[339409708,1727593545554,2056.28,9.81e-05,2]
[339409709,1727593546065,626.48,9.81e-05,2]
[339409711,1727593563470,1650.0,9.81e-05,2]
[339409715,1727593581301,289.23,9.887e-05,2]
[339409721,1727593617052,152.93,0.00013918,30]
[339409834,1727593742634,-250.0,9.973e-05,2]
[339409835,1727593742660,-250.0,9.99e-05,2]
[339409836,1727593742685,-1899.14886523,9.99e-05,2]
[339409837,1727593742712,-1000.0,0.00010025,2]
[339409838,1727593742738,-161.05,0.00010032,2]
[339409839,1727593742763,-700.0,0.00010068,2]
[339409840,1727593742788,-500.0,0.00010068,2]
[339409841,1727593742813,-150.0,0.00010162,2]
[339409842,1727593742839,-177.26,0.00010206,2]
[339409843,1727593742863,-1689.416954,0.00010421,2]
[339409844,1727593742889,-150.0,0.00010437,2]
[339409845,1727593742914,-418.11,0.00010474,2]
[339409846,1727593742940,-14.82003225,0.00010699,2]
[339409985,1727593832233,-345.80403217,0.00010039,2]
[339409992,1727593832403,-654.19596783,0.00010039,2]
[339409994,1727593832413,-250.0,0.00010051,2]
[339409995,1727593832423,-169.49,0.00010056,2]
[339409997,1727593832434,-700.0,0.00010068,2]
[339409998,1727593832443,-500.0,0.00010068,2]
[339410000,1727593832457,-1223.0,0.000106,2]
[339410001,1727593832467,-1052.58,0.000107,2]
[339410002,1727593832477,-150.0,0.00010712,2]
[339410004,1727593832486,-300.0,0.00010746,2]
[339410005,1727593832496,-1968.9307,0.00010799,2]
[339410007,1727593832505,-1508.5827,0.00010799,2]
[339410008,1727593832515,-500.0,0.00010873,2]
[339410009,1727593832524,-500.0,0.00010873,2]
[339410011,1727593832533,-290.44662321,0.00010889,2]
[339410012,1727593832544,-157.7,0.0001089,2]
[339410014,1727593832553,-150.0,0.00010898,2]
[339410015,1727593832563,-299.5995,0.00010899,2]
[339410016,1727593832572,-3838.0246,0.00010899,2]
[339410018,1727593832581,-7270.55446969,0.00010899,2]
[339410019,1727593832593,-42174.02364068,0.00010899,2]
[339410021,1727593832604,-445.82500683,0.00010899,2]
[339410022,1727593832615,-1055.69681033,0.00010899,2]
[339410024,1727593832632,-6379.71782852,0.00010899,2]
[339410025,1727593832643,-12305.80788377,0.00010899,2]
[339410027,1727593832655,-5859.50133017,0.00010899,2]
[339410028,1727593832665,-297.04785907,0.00010899,2]
[339410087,1727593838215,-873.3652596,0.00010899,2]
[339410088,1727593838227,-668.26362144,0.00010899,2]
[339410089,1727593838238,-588.44570272,0.00010899,2]
[339410090,1727593838438,-269934.16825662,0.00010899,2]
[339410091,1727593838448,-14669.33326423,0.00010899,2]
[339410092,1727593838462,-14669.33326419,0.00010899,2]
[339410093,1727593838471,-14669.33326419,0.00010899,2]
[339410094,1727593838481,-14669.33326419,0.00010899,2]
[339410095,1727593838490,-14669.33326419,0.00010899,2]
[339410096,1727593838499,-14669.33326419,0.00010899,2]
[339410097,1727593838508,-14669.33326419,0.00010899,2]
[339410098,1727593838517,-14669.33326419,0.00010899,2]
[339410099,1727593838527,-14669.33326419,0.00010899,2]
[339410100,1727593838536,-27139.6557,0.000109,2]
[339410101,1727593838545,-1570.2275,0.000109,2]
[339410102,1727593838554,-166.6922846,0.000109,2]
[339410103,1727593838564,-190.98665055,0.000109,2]
[339410104,1727593838573,-229.5392,0.000109,2]